[Event "Titled Tuesday Blitz April 05 Late 2022"]
[White "Iskusnyh, Sergei"]
[Black "Hess, Robert"]
[WhiteFideId "4120027"]
[BlackFideId "2022036"]
[WhiteElo "2492"]
[BlackElo "2557"]
[Result "1/2-1/2"]
[Round "03"]
[TimeControl "180+1"]
[Date "2022.04.05"]
[WhiteClock "0:00:08"]
[BlackClock "0:00:09"]

1. d4 {[%clk 0:03:00]}  g6 {[%clk 0:03:00]} 2. c4 {[%clk 0:02:59]}  Bg7 {[%clk 0:03:01]} 3. Nf3 {[%clk 0:03:00]}  d6 {[%clk 0:03:01]} 4. g3 {[%clk 0:02:59]}  Nd7 {[%clk 0:03:00]} 5. Bg2 {[%clk 0:02:58]}  e6 {[%clk 0:03:00]} 6. Nc3 {[%clk 0:02:58]}  Ne7 {[%clk 0:03:00]} 7. O-O {[%clk 0:02:57]}  h6 {[%clk 0:03:00]} 8. e4 {[%clk 0:02:56]}  b6 {[%clk 0:02:56]} 9. Be3 {[%clk 0:02:51]}  Bb7 {[%clk 0:02:54]} 10. Qc2 {[%clk 0:02:49]}  g5 {[%clk 0:02:53]} 11. d5 {[%clk 0:02:39]}  e5 {[%clk 0:02:26]} 12. b4 {[%clk 0:02:37]}  a5 {[%clk 0:02:19]} 13. a3 {[%clk 0:02:34]}  O-O {[%clk 0:02:14]} 14. Rab1 {[%clk 0:02:33]}  axb4 {[%clk 0:02:08]} 15. axb4 {[%clk 0:02:33]}  f5 {[%clk 0:02:08]} 16. exf5 {[%clk 0:02:24]}  Nxf5 {[%clk 0:02:08]} 17. Ne4 {[%clk 0:02:22]}  g4 {[%clk 0:01:49]} 18. Nfd2 {[%clk 0:02:17]}  Ra3 {[%clk 0:01:22]} 19. Rb3 {[%clk 0:02:01]}  Qa8 {[%clk 0:01:18]} 20. h3 {[%clk 0:01:42]}  Qa4 {[%clk 0:00:45]} 21. hxg4 {[%clk 0:01:30]}  Nxe3 {[%clk 0:00:45]} 22. fxe3 {[%clk 0:01:30]}  Rxf1+ {[%clk 0:00:30]} 23. Bxf1 {[%clk 0:01:29]}  Ra2 {[%clk 0:00:30]} 24. Qd3 {[%clk 0:01:18]}  Nf8 {[%clk 0:00:30]} 25. c5 {[%clk 0:00:43]}  bxc5 {[%clk 0:00:14]} 26. bxc5 {[%clk 0:00:41]}  Bc8 {[%clk 0:00:14]} 27. cxd6 {[%clk 0:00:37]}  cxd6 {[%clk 0:00:14]} 28. Rb8 {[%clk 0:00:31]}  Bxg4 {[%clk 0:00:12]} 29. Nf6+ {[%clk 0:00:10]}  Bxf6 {[%clk 0:00:11]} 30. Qg6+ {[%clk 0:00:10]}  Bg7 {[%clk 0:00:10]} 31. Bd3 {[%clk 0:00:10]}  Ra1+ {[%clk 0:00:03]} 32. Nf1 {[%clk 0:00:09]}  e4 {[%clk 0:00:03]} 33. Bxe4 {[%clk 0:00:08]}  Rxf1+ {[%clk 0:00:03]} 34. Kxf1 {[%clk 0:00:08]}  Qd1+ {[%clk 0:00:04]} 35. Kf2 {[%clk 0:00:08]}  Qe2+ {[%clk 0:00:04]} 36. Kg1 {[%clk 0:00:07]}  Qxe3+ {[%clk 0:00:04]} 37. Kh2 {[%clk 0:00:06]}  Qf2+ {[%clk 0:00:04]} 38. Bg2 {[%clk 0:00:06]}  Bf3 {[%clk 0:00:03]} 39. Rxf8+ {[%clk 0:00:04]}  Kxf8 {[%clk 0:00:03]} 40. Qf5+ {[%clk 0:00:05]}  Ke7 {[%clk 0:00:03]} 41. Qxf3 {[%clk 0:00:05]}  Qxf3 {[%clk 0:00:03]} 42. Bxf3 {[%clk 0:00:06]}  Kf6 {[%clk 0:00:04]} 43. Bg4 {[%clk 0:00:06]}  Ke5 {[%clk 0:00:05]} 44. Be6 {[%clk 0:00:06]}  Ke4 {[%clk 0:00:05]} 45. Kg2 {[%clk 0:00:07]}  Ke5 {[%clk 0:00:06]} 46. Bf7 {[%clk 0:00:07]}  Bf6 {[%clk 0:00:07]} 47. Be6 {[%clk 0:00:07]}  Bg5 {[%clk 0:00:08]} 48. Bf7 {[%clk 0:00:08]}  Bf6 {[%clk 0:00:09]} 49. Be6 {[%clk 0:00:08]}  Bg5 {[%clk 0:00:10]} 50. Bf7 {[%clk 0:00:08]}  Bf6 {[%clk 0:00:09]} 1/2-1/2


[Site "https://www.chess.com"]

[Event "Titled Tuesday Blitz April 05 Late 2022"]
[White "Jacobson, Brandon"]
[Black "Pinheiro, Iung Alicio de O."]
[WhiteFideId "30901561"]
[BlackFideId "2104350"]
[WhiteElo "2362"]
[BlackElo "2551"]
[Result "1-0"]
[Round "03"]
[TimeControl "180+1"]
[Date "2022.04.05"]
[WhiteClock "0:01:58"]
[BlackClock "0:00:07"]

1. e4 {[%clk 0:03:00]}  c5 {[%clk 0:02:58]} 2. Nf3 {[%clk 0:02:59]}  Nc6 {[%clk 0:02:58]} 3. Bb5 {[%clk 0:02:59]}  e6 {[%clk 0:02:58]} 4. Bxc6 {[%clk 0:02:59]}  bxc6 {[%clk 0:02:58]} 5. d3 {[%clk 0:03:00]}  Ne7 {[%clk 0:02:57]} 6. h4 {[%clk 0:03:00]}  Qc7 {[%clk 0:02:52]} 7. h5 {[%clk 0:02:55]}  f6 {[%clk 0:02:37]} 8. h6 {[%clk 0:02:50]}  g6 {[%clk 0:02:36]} 9. d4 {[%clk 0:02:42]}  cxd4 {[%clk 0:02:31]} 10. Qxd4 {[%clk 0:02:43]}  e5 {[%clk 0:02:31]} 11. Qc4 {[%clk 0:02:43]}  Rb8 {[%clk 0:02:06]} 12. Nc3 {[%clk 0:02:42]}  Qa5 {[%clk 0:01:54]} 13. Bd2 {[%clk 0:02:39]}  Ba6 {[%clk 0:01:50]} 14. Qa4 {[%clk 0:02:33]}  Qxa4 {[%clk 0:01:34]} 15. Nxa4 {[%clk 0:02:34]}  Bb5 {[%clk 0:01:32]} 16. Nc5 {[%clk 0:02:30]}  Nc8 {[%clk 0:01:28]} 17. Be3 {[%clk 0:02:26]}  Bc4 {[%clk 0:01:22]} 18. b3 {[%clk 0:02:21]}  Bf7 {[%clk 0:01:22]} 19. c4 {[%clk 0:02:20]}  d6 {[%clk 0:01:20]} 20. Na4 {[%clk 0:02:15]}  d5 {[%clk 0:01:12]} 21. cxd5 {[%clk 0:02:15]}  cxd5 {[%clk 0:01:12]} 22. exd5 {[%clk 0:02:16]}  Bxd5 {[%clk 0:01:11]} 23. O-O {[%clk 0:02:16]}  Ba3 {[%clk 0:00:34]} 24. Rfd1 {[%clk 0:02:13]}  Be6 {[%clk 0:00:19]} 25. Bc5 {[%clk 0:02:04]}  Bxc5 {[%clk 0:00:18]} 26. Nxc5 {[%clk 0:02:05]}  Bg4 {[%clk 0:00:19]} 27. Rac1 {[%clk 0:02:05]}  Nb6 {[%clk 0:00:16]} 28. Na6 {[%clk 0:02:05]}  Rd8 {[%clk 0:00:15]} 29. Rxd8+ {[%clk 0:02:03]}  Kxd8 {[%clk 0:00:15]} 30. Rc7 {[%clk 0:02:03]}  Nd7 {[%clk 0:00:11]} 31. Rxa7 {[%clk 0:02:01]}  Bxf3 {[%clk 0:00:12]} 32. gxf3 {[%clk 0:02:01]}  Re8 {[%clk 0:00:09]} 33. Nc7 {[%clk 0:01:58]}  Re7 {[%clk 0:00:07]} 34. Nd5 {[%clk 0:01:58]} 1-0


[Site "https://www.chess.com"]

[Event "Titled Tuesday Blitz April 05 Late 2022"]
[White "Jaracz, Pawel"]
[Black "Degardin, Sylvain"]
[WhiteFideId "1102222"]
[BlackFideId "20623070"]
[WhiteElo "2429"]
[BlackElo "2156"]
[Result "1-0"]
[Round "03"]
[TimeControl "180+1"]
[Date "2022.04.06"]
[WhiteClock "0:00:08"]
[BlackClock "0:00:04"]

1. e4 {[%clk 0:03:00]}  c5 {[%clk 0:02:59]} 2. Nc3 {[%clk 0:02:59]}  Nc6 {[%clk 0:02:59]} 3. f4 {[%clk 0:03:00]}  g6 {[%clk 0:02:58]} 4. Nf3 {[%clk 0:03:00]}  Bg7 {[%clk 0:02:58]} 5. Bb5 {[%clk 0:03:00]}  Nd4 {[%clk 0:02:58]} 6. Bc4 {[%clk 0:02:59]}  e6 {[%clk 0:02:56]} 7. Nxd4 {[%clk 0:02:58]}  cxd4 {[%clk 0:02:56]} 8. Ne2 {[%clk 0:02:59]}  Ne7 {[%clk 0:02:52]} 9. d3 {[%clk 0:02:53]}  d5 {[%clk 0:02:51]} 10. Bb5+ {[%clk 0:02:53]}  Bd7 {[%clk 0:02:50]} 11. Bxd7+ {[%clk 0:02:52]}  Qxd7 {[%clk 0:02:51]} 12. e5 {[%clk 0:02:52]}  Nc6 {[%clk 0:02:39]} 13. O-O {[%clk 0:02:51]}  O-O {[%clk 0:02:38]} 14. Kh1 {[%clk 0:02:46]}  Rac8 {[%clk 0:02:37]} 15. Bd2 {[%clk 0:02:38]}  f6 {[%clk 0:02:32]} 16. exf6 {[%clk 0:02:38]}  Bxf6 {[%clk 0:02:32]} 17. Ng1 {[%clk 0:02:37]}  Rf7 {[%clk 0:02:15]} 18. Qg4 {[%clk 0:02:33]}  Ne7 {[%clk 0:02:12]} 19. Rfc1 {[%clk 0:02:22]}  Nf5 {[%clk 0:02:11]} 20. Nf3 {[%clk 0:02:22]}  Qd6 {[%clk 0:02:03]} 21. Qh3 {[%clk 0:02:00]}  Rfc7 {[%clk 0:02:02]} 22. Ne1 {[%clk 0:01:55]}  Ne3 {[%clk 0:01:58]} 23. Bxe3 {[%clk 0:01:53]}  dxe3 {[%clk 0:01:58]} 24. c3 {[%clk 0:01:53]}  Qxf4 {[%clk 0:01:53]} 25. Qxe6+ {[%clk 0:01:53]}  Kg7 {[%clk 0:01:52]} 26. Nf3 {[%clk 0:01:53]}  d4 {[%clk 0:01:44]} 27. c4 {[%clk 0:01:52]}  Rf8 {[%clk 0:01:38]} 28. Re1 {[%clk 0:01:31]}  Re7 {[%clk 0:01:37]} 29. Qd5 {[%clk 0:01:22]}  g5 {[%clk 0:01:28]} 30. Re2 {[%clk 0:01:20]}  g4 {[%clk 0:01:27]} 31. Ng1 {[%clk 0:01:19]}  Re5 {[%clk 0:01:16]} 32. Qxb7+ {[%clk 0:01:18]}  Rf7 {[%clk 0:01:17]} 33. Qc8 {[%clk 0:01:14]}  Rh5 {[%clk 0:01:06]} 34. g3 {[%clk 0:01:14]}  Qxg3 {[%clk 0:01:06]} 35. Rg2 {[%clk 0:01:14]}  Qd6 {[%clk 0:00:46]} 36. Rf1 {[%clk 0:00:57]}  g3 {[%clk 0:00:42]} 37. h3 {[%clk 0:00:36]}  Qe5 {[%clk 0:00:28]} 38. Nf3 {[%clk 0:00:30]}  Qc7 {[%clk 0:00:20]} 39. Qg4+ {[%clk 0:00:28]}  Kh6 {[%clk 0:00:21]} 40. Qe6 {[%clk 0:00:12]}  Qd7 {[%clk 0:00:18]} 41. Qxd7 {[%clk 0:00:11]}  Rxd7 {[%clk 0:00:19]} 42. Rxg3 {[%clk 0:00:11]}  Rg7 {[%clk 0:00:16]} 43. Rxg7 {[%clk 0:00:11]}  Kxg7 {[%clk 0:00:17]} 44. Ng1 {[%clk 0:00:11]}  Ra5 {[%clk 0:00:15]} 45. a3 {[%clk 0:00:11]}  Bh4 {[%clk 0:00:13]} 46. Ne2 {[%clk 0:00:10]}  Bf2 {[%clk 0:00:13]} 47. Kg2 {[%clk 0:00:07]}  Rg5+ {[%clk 0:00:10]} 48. Kf3 {[%clk 0:00:08]}  Rh5 {[%clk 0:00:07]} 49. b4 {[%clk 0:00:05]}  Rxh3+ {[%clk 0:00:06]} 50. Ke4 {[%clk 0:00:04]}  Rh4+ {[%clk 0:00:06]} 51. Kf3 {[%clk 0:00:04]}  Kf6 {[%clk 0:00:06]} 52. c5 {[%clk 0:00:04]}  Ke5 {[%clk 0:00:06]} 53. Rc1 {[%clk 0:00:02]}  Rh3+ {[%clk 0:00:06]} 54. Kg4 {[%clk 0:00:02]}  Rh2 {[%clk 0:00:04]} 55. c6 {[%clk 0:00:02]}  h5+ {[%clk 0:00:04]} 56. Kf3 {[%clk 0:00:02]}  Rh3+ {[%clk 0:00:03]} 57. Kg2 {[%clk 0:00:03]}  Rh4 {[%clk 0:00:02]} 58. c7 {[%clk 0:00:03]}  Rg4+ {[%clk 0:00:02]} 59. Kf3 {[%clk 0:00:04]}  Rg8 {[%clk 0:00:01]} 60. c8=Q {[%clk 0:00:04]}  Rxc8 {[%clk 0:00:01]} 61. Rxc8 {[%clk 0:00:05]}  h4 {[%clk 0:00:01]} 62. Rh8 {[%clk 0:00:05]}  Kd5 {[%clk 0:00:02]} 63. Rh5+ {[%clk 0:00:05]}  Kc6 {[%clk 0:00:02]} 64. Nxd4+ {[%clk 0:00:05]}  Kb6 {[%clk 0:00:02]} 65. Ne2 {[%clk 0:00:06]}  a6 {[%clk 0:00:01]} 66. a4 {[%clk 0:00:06]}  Kc6 {[%clk 0:00:01]} 67. Ke4 {[%clk 0:00:06]}  Kb6 {[%clk 0:00:02]} 68. Rh6+ {[%clk 0:00:06]}  Kb7 {[%clk 0:00:02]} 69. b5 {[%clk 0:00:06]}  axb5 {[%clk 0:00:02]} 70. axb5 {[%clk 0:00:07]}  Kc7 {[%clk 0:00:03]} 71. Kd5 {[%clk 0:00:07]}  Kb7 {[%clk 0:00:04]} 72. Kc5 {[%clk 0:00:07]}  Bg3 {[%clk 0:00:05]} 73. Rh7+ {[%clk 0:00:07]}  Kb8 {[%clk 0:00:05]} 74. Kc6 {[%clk 0:00:08]}  Bf2 {[%clk 0:00:04]} 75. b6 {[%clk 0:00:08]} 1-0


[Site "https://www.chess.com"]

[Event "Titled Tuesday Blitz April 05 Late 2022"]
[White "Jobava, Baadur"]
[Black "Gledura, Benjamin"]
[WhiteFideId "13601520"]
[BlackFideId "712779"]
[WhiteElo "2617"]
[BlackElo "2326"]
[Result "0-1"]
[Round "03"]
[TimeControl "180+1"]
[Date "2022.04.05"]
[WhiteClock "0:00:02"]
[BlackClock "0:00:07"]

1. b3 {[%clk 0:03:00]}  d5 {[%clk 0:02:57]} 2. Bb2 {[%clk 0:03:01]}  c6 {[%clk 0:02:57]} 3. e3 {[%clk 0:03:01]}  Bf5 {[%clk 0:02:57]} 4. f4 {[%clk 0:03:00]}  h6 {[%clk 0:02:54]} 5. Nf3 {[%clk 0:03:00]}  e6 {[%clk 0:02:54]} 6. Nc3 {[%clk 0:03:00]}  Nf6 {[%clk 0:02:54]} 7. h3 {[%clk 0:02:59]}  Nbd7 {[%clk 0:02:53]} 8. g4 {[%clk 0:02:59]}  Bh7 {[%clk 0:02:53]} 9. Bg2 {[%clk 0:02:59]}  Bd6 {[%clk 0:02:50]} 10. Qe2 {[%clk 0:02:55]}  Qe7 {[%clk 0:02:50]} 11. O-O-O {[%clk 0:02:54]}  a5 {[%clk 0:02:49]} 12. Kb1 {[%clk 0:02:48]}  a4 {[%clk 0:02:47]} 13. Nxa4 {[%clk 0:02:48]}  b5 {[%clk 0:02:46]} 14. Nc3 {[%clk 0:02:47]}  Ba3 {[%clk 0:02:46]} 15. Ba1 {[%clk 0:02:46]}  Bb4 {[%clk 0:02:36]} 16. Nd4 {[%clk 0:02:43]}  Bxc3 {[%clk 0:02:34]} 17. Bxc3 {[%clk 0:02:39]}  Qa3 {[%clk 0:02:34]} 18. d3 {[%clk 0:02:33]}  Qxa2+ {[%clk 0:02:32]} 19. Kc1 {[%clk 0:02:33]}  b4 {[%clk 0:02:21]} 20. Bb2 {[%clk 0:02:31]}  c5 {[%clk 0:02:11]} 21. Nxe6 {[%clk 0:02:23]}  fxe6 {[%clk 0:02:09]} 22. g5 {[%clk 0:02:23]}  O-O {[%clk 0:01:30]} 23. gxf6 {[%clk 0:02:22]}  Nxf6 {[%clk 0:01:31]} 24. Rhg1 {[%clk 0:02:22]}  Ra7 {[%clk 0:01:29]} 25. e4 {[%clk 0:02:08]}  d4 {[%clk 0:01:25]} 26. h4 {[%clk 0:02:00]}  Kh8 {[%clk 0:01:17]} 27. Bh3 {[%clk 0:01:59]}  Bg8 {[%clk 0:01:16]} 28. Rg3 {[%clk 0:01:53]}  Ne8 {[%clk 0:01:10]} 29. Qd2 {[%clk 0:01:40]}  Nd6 {[%clk 0:01:00]} 30. Rdg1 {[%clk 0:01:35]}  e5 {[%clk 0:00:16]} 31. fxe5 {[%clk 0:01:27]}  c4 {[%clk 0:00:17]} 32. Bxd4 {[%clk 0:01:04]}  c3 {[%clk 0:00:12]} 33. Bxc3 {[%clk 0:00:33]}  bxc3 {[%clk 0:00:13]} 34. Qxc3 {[%clk 0:00:34]}  Nb5 {[%clk 0:00:12]} 35. Qb2 {[%clk 0:00:33]}  Qa5 {[%clk 0:00:11]} 36. b4 {[%clk 0:00:27]}  Qb6 {[%clk 0:00:10]} 37. e6 {[%clk 0:00:25]}  Nd4 {[%clk 0:00:10]} 38. Bg4 {[%clk 0:00:19]}  Rc8 {[%clk 0:00:09]} 39. Bd1 {[%clk 0:00:18]}  Bxe6 {[%clk 0:00:07]} 40. Rg6 {[%clk 0:00:18]}  Ra2 {[%clk 0:00:06]} 41. Qxa2 {[%clk 0:00:16]}  Ne2+ {[%clk 0:00:06]} 42. Kd2 {[%clk 0:00:15]}  Qxb4+ {[%clk 0:00:06]} 43. Kxe2 {[%clk 0:00:14]}  Bxa2 {[%clk 0:00:07]} 44. Rxg7 {[%clk 0:00:13]}  Qd4 {[%clk 0:00:06]} 45. R7g6 {[%clk 0:00:12]}  Kh7 {[%clk 0:00:04]} 46. h5 {[%clk 0:00:12]}  Qe5 {[%clk 0:00:03]} 47. Kd2 {[%clk 0:00:11]}  Qf4+ {[%clk 0:00:03]} 48. Ke2 {[%clk 0:00:08]}  Bf7 {[%clk 0:00:04]} 49. Rg7+ {[%clk 0:00:08]}  Kh8 {[%clk 0:00:04]} 50. Rxf7 {[%clk 0:00:02]}  Qxf7 {[%clk 0:00:04]} 51. Ke3 {[%clk 0:00:03]}  Qf6 {[%clk 0:00:05]} 52. Bg4 {[%clk 0:00:03]}  Qg5+ {[%clk 0:00:05]} 53. Ke2 {[%clk 0:00:02]}  Rf8 {[%clk 0:00:05]} 54. Rg2 {[%clk 0:00:02]}  Qf4 {[%clk 0:00:06]} 55. Bf5 {[%clk 0:00:02]}  Re8 {[%clk 0:00:05]} 56. Kd1 {[%clk 0:00:01]}  Qf3+ {[%clk 0:00:05]} 57. Re2 {[%clk 0:00:02]}  Qf1+ {[%clk 0:00:06]} 58. Kd2 {[%clk 0:00:02]}  Qf4+ {[%clk 0:00:06]} 59. Kd1 {[%clk 0:00:02]}  Rg8 {[%clk 0:00:07]} 60. Re1 {[%clk 0:00:02]}  Ra8 {[%clk 0:00:07]} 0-1


[Site "https://www.chess.com"]

[Event "Titled Tuesday Blitz April 05 Late 2022"]
[White "Jumabayev, Rinat"]
[Black "Rostovtsev, Dmitry"]
[WhiteFideId "13702661"]
[BlackFideId "34278320"]
[WhiteElo "2561"]
[BlackElo "2272"]
[Result "1-0"]
[Round "03"]
[TimeControl "180+1"]
[Date "2022.04.05"]
[WhiteClock "0:00:18"]
[BlackClock "0:01:11"]

1. d4 {[%clk 0:03:00]}  Nf6 {[%clk 0:02:59]} 2. Bf4 {[%clk 0:03:01]}  e6 {[%clk 0:02:58]} 3. e3 {[%clk 0:03:01]}  c5 {[%clk 0:02:58]} 4. Nf3 {[%clk 0:03:01]}  cxd4 {[%clk 0:02:58]} 5. exd4 {[%clk 0:03:00]}  b6 {[%clk 0:02:59]} 6. Nbd2 {[%clk 0:02:56]}  Bb7 {[%clk 0:02:59]} 7. Bd3 {[%clk 0:02:56]}  Be7 {[%clk 0:02:59]} 8. O-O {[%clk 0:02:50]}  Nh5 {[%clk 0:02:55]} 9. Be3 {[%clk 0:02:49]}  d6 {[%clk 0:02:53]} 10. c4 {[%clk 0:02:40]}  O-O {[%clk 0:02:52]} 11. d5 {[%clk 0:02:40]}  e5 {[%clk 0:02:45]} 12. Nxe5 {[%clk 0:02:39]}  Nf6 {[%clk 0:02:31]} 13. Nef3 {[%clk 0:02:38]}  Nbd7 {[%clk 0:02:31]} 14. h3 {[%clk 0:02:36]}  Nc5 {[%clk 0:02:31]} 15. Bc2 {[%clk 0:02:36]}  a5 {[%clk 0:02:31]} 16. Re1 {[%clk 0:02:36]}  a4 {[%clk 0:02:30]} 17. Nd4 {[%clk 0:02:36]}  Re8 {[%clk 0:02:31]} 18. Nb1 {[%clk 0:02:28]}  a3 {[%clk 0:02:24]} 19. Nxa3 {[%clk 0:02:27]}  Nfd7 {[%clk 0:02:23]} 20. Nab5 {[%clk 0:02:26]}  Ne5 {[%clk 0:02:23]} 21. b3 {[%clk 0:02:27]}  Bf6 {[%clk 0:02:23]} 22. a4 {[%clk 0:02:20]}  Qd7 {[%clk 0:02:22]} 23. Rc1 {[%clk 0:02:18]}  Ba6 {[%clk 0:02:21]} 24. Bf5 {[%clk 0:02:17]}  Qd8 {[%clk 0:02:20]} 25. f4 {[%clk 0:02:16]}  Ng6 {[%clk 0:02:18]} 26. Nc6 {[%clk 0:02:16]}  Rxe3 {[%clk 0:02:16]} 27. Nxd8 {[%clk 0:02:10]}  Rxe1+ {[%clk 0:02:16]} 28. Qxe1 {[%clk 0:02:10]}  Rxd8 {[%clk 0:02:17]} 29. Qe3 {[%clk 0:02:07]}  Bxb5 {[%clk 0:02:17]} 30. axb5 {[%clk 0:02:00]}  Kf8 {[%clk 0:02:16]} 31. Re1 {[%clk 0:01:56]}  Ne7 {[%clk 0:02:05]} 32. Bc2 {[%clk 0:01:56]}  Rc8 {[%clk 0:02:01]} 33. g4 {[%clk 0:01:55]}  h6 {[%clk 0:02:00]} 34. b4 {[%clk 0:01:49]}  Nd7 {[%clk 0:01:59]} 35. Bd3 {[%clk 0:01:47]}  g5 {[%clk 0:01:54]} 36. Rf1 {[%clk 0:01:36]}  Kg7 {[%clk 0:01:52]} 37. h4 {[%clk 0:01:29]}  gxh4 {[%clk 0:01:51]} 38. g5 {[%clk 0:01:28]}  hxg5 {[%clk 0:01:51]} 39. fxg5 {[%clk 0:01:29]}  Be5 {[%clk 0:01:51]} 40. Qh3 {[%clk 0:01:29]}  Rd8 {[%clk 0:01:48]} 41. Qxh4 {[%clk 0:01:14]}  Rh8 {[%clk 0:01:45]} 42. Qf2 {[%clk 0:01:01]}  f6 {[%clk 0:01:39]} 43. Bf5 {[%clk 0:00:57]}  Nf8 {[%clk 0:01:25]} 44. gxf6+ {[%clk 0:00:53]}  Bxf6 {[%clk 0:01:25]} 45. Be6 {[%clk 0:00:53]}  Rh6 {[%clk 0:01:24]} 46. Qxb6 {[%clk 0:00:43]}  Nxe6 {[%clk 0:01:12]} 47. dxe6 {[%clk 0:00:41]}  Rg6+ {[%clk 0:01:12]} 48. Kf2 {[%clk 0:00:37]}  Nf5 {[%clk 0:01:13]} 49. Qb7+ {[%clk 0:00:35]}  Be7 {[%clk 0:01:13]} 50. Ke1 {[%clk 0:00:30]}  Rxe6+ {[%clk 0:01:13]} 51. Kd2 {[%clk 0:00:30]}  Kf6 {[%clk 0:01:14]} 52. b6 {[%clk 0:00:27]}  Re5 {[%clk 0:01:13]} 53. Qc8 {[%clk 0:00:19]}  Kg6 {[%clk 0:01:13]} 54. Rxf5 {[%clk 0:00:18]}  Rxf5 {[%clk 0:01:13]} 55. Qxf5+ {[%clk 0:00:18]}  Kxf5 {[%clk 0:01:12]} 56. b7 {[%clk 0:00:19]}  d5 {[%clk 0:01:12]} 57. b8=Q {[%clk 0:00:19]}  dxc4 {[%clk 0:01:12]} 58. Kc3 {[%clk 0:00:19]}  Bd6 {[%clk 0:01:11]} 59. Qxd6 {[%clk 0:00:18]} 1-0


[Site "https://www.chess.com"]

[Event "Titled Tuesday Blitz April 05 Late 2022"]
[White "Kohler, Aran"]
[Black "Danilov, Vladimir"]
[WhiteFideId "1002856"]
[BlackFideId "1203398"]
[WhiteElo "2302"]
[BlackElo "2227"]
[Result "1-0"]
[Round "03"]
[TimeControl "180+1"]
[Date "2022.04.06"]
[WhiteClock "0:00:13"]
[BlackClock "0:01:15"]

1. d4 {[%clk 0:02:58]}  d5 {[%clk 0:02:59]} 2. Bf4 {[%clk 0:02:57]}  c6 {[%clk 0:03:00]} 3. c3 {[%clk 0:02:56]}  Bf5 {[%clk 0:02:59]} 4. Nd2 {[%clk 0:02:54]}  e6 {[%clk 0:02:59]} 5. e3 {[%clk 0:02:53]}  Nd7 {[%clk 0:03:00]} 6. g4 {[%clk 0:02:48]}  Bg6 {[%clk 0:02:59]} 7. h4 {[%clk 0:02:48]}  h5 {[%clk 0:03:00]} 8. g5 {[%clk 0:02:41]}  Ne7 {[%clk 0:03:00]} 9. Qb3 {[%clk 0:02:37]}  Qb6 {[%clk 0:02:59]} 10. Ngf3 {[%clk 0:02:29]}  Qxb3 {[%clk 0:02:59]} 11. axb3 {[%clk 0:02:28]}  a6 {[%clk 0:02:59]} 12. b4 {[%clk 0:02:27]}  O-O-O {[%clk 0:02:31]} 13. Rxa6 {[%clk 0:02:15]}  e5 {[%clk 0:02:20]} 14. Ra8+ {[%clk 0:02:13]}  Kc7 {[%clk 0:02:20]} 15. Rxd8 {[%clk 0:02:11]}  Kxd8 {[%clk 0:02:20]} 16. Nxe5 {[%clk 0:02:11]}  Nxe5 {[%clk 0:02:20]} 17. Bxe5 {[%clk 0:02:11]}  Nf5 {[%clk 0:02:21]} 18. Be2 {[%clk 0:01:27]}  Kd7 {[%clk 0:02:20]} 19. Nf1 {[%clk 0:01:22]}  Bd6 {[%clk 0:02:20]} 20. Bxd6 {[%clk 0:01:20]}  Kxd6 {[%clk 0:02:20]} 21. Kd2 {[%clk 0:01:11]}  Ra8 {[%clk 0:02:19]} 22. Bd3 {[%clk 0:00:51]}  Ra2 {[%clk 0:02:16]} 23. Kc1 {[%clk 0:00:48]}  Ra1+ {[%clk 0:02:16]} 24. Kd2 {[%clk 0:00:47]}  Nxh4 {[%clk 0:02:00]} 25. Rxh4 {[%clk 0:00:43]}  Bxd3 {[%clk 0:02:00]} 26. Kxd3 {[%clk 0:00:43]}  Rxf1 {[%clk 0:02:00]} 27. Rxh5 {[%clk 0:00:39]}  Rxf2 {[%clk 0:02:00]} 28. Rh7 {[%clk 0:00:38]}  g6 {[%clk 0:02:00]} 29. b3 {[%clk 0:00:37]}  Rf5 {[%clk 0:02:00]} 30. e4 {[%clk 0:00:35]}  dxe4+ {[%clk 0:01:59]} 31. Kxe4 {[%clk 0:00:35]}  Ke7 {[%clk 0:01:58]} 32. c4 {[%clk 0:00:29]}  Rxg5 {[%clk 0:01:58]} 33. Rh8 {[%clk 0:00:28]}  Rg3 {[%clk 0:01:56]} 34. Rb8 {[%clk 0:00:27]}  Rxb3 {[%clk 0:01:53]} 35. Rxb7+ {[%clk 0:00:28]}  Ke6 {[%clk 0:01:54]} 36. Rb6 {[%clk 0:00:27]}  Ke7 {[%clk 0:01:47]} 37. d5 {[%clk 0:00:28]}  cxd5+ {[%clk 0:01:47]} 38. Kxd5 {[%clk 0:00:28]}  g5 {[%clk 0:01:45]} 39. Rb7+ {[%clk 0:00:27]}  Ke8 {[%clk 0:01:45]} 40. c5 {[%clk 0:00:27]}  g4 {[%clk 0:01:44]} 41. c6 {[%clk 0:00:28]}  Rc3 {[%clk 0:01:40]} 42. Rb8+ {[%clk 0:00:24]}  Ke7 {[%clk 0:01:40]} 43. Rg8 {[%clk 0:00:20]}  f5 {[%clk 0:01:32]} 44. b5 {[%clk 0:00:21]}  g3 {[%clk 0:01:22]} 45. b6 {[%clk 0:00:21]}  f4 {[%clk 0:01:23]} 46. b7 {[%clk 0:00:20]}  Rb3 {[%clk 0:01:22]} 47. b8=Q {[%clk 0:00:20]}  Rxb8 {[%clk 0:01:22]} 48. Rxb8 {[%clk 0:00:19]}  g2 {[%clk 0:01:22]} 49. c7 {[%clk 0:00:19]}  g1=Q {[%clk 0:01:21]} 50. c8=Q {[%clk 0:00:19]}  Qd1+ {[%clk 0:01:14]} 51. Ke5 {[%clk 0:00:20]}  Qe2+ {[%clk 0:01:14]} 52. Kf5 {[%clk 0:00:20]}  Qh5+ {[%clk 0:01:14]} 53. Kxf4 {[%clk 0:00:20]}  Qh2+ {[%clk 0:01:14]} 54. Ke3 {[%clk 0:00:20]}  Qg1+ {[%clk 0:01:14]} 55. Kd2 {[%clk 0:00:20]}  Qg5+ {[%clk 0:01:15]} 56. Kc2 {[%clk 0:00:20]}  Qg2+ {[%clk 0:01:15]} 57. Kb3 {[%clk 0:00:18]}  Qg3+ {[%clk 0:01:15]} 58. Kb4 {[%clk 0:00:17]}  Qf4+ {[%clk 0:01:15]} 59. Ka5 {[%clk 0:00:16]}  Qd2+ {[%clk 0:01:14]} 60. Rb4 {[%clk 0:00:13]}  Qa2+ {[%clk 0:01:14]} 61. Kb6 {[%clk 0:00:12]}  Qf2+ {[%clk 0:01:14]} 62. Qc5+ {[%clk 0:00:13]}  Qxc5+ {[%clk 0:01:15]} 63. Kxc5 {[%clk 0:00:13]} 1-0


[Site "https://www.chess.com"]